bitfinex/quotes_BTCUSD_20240701
["timestamp","ask_amount","ask_price","bid_price","bid_amount"]
[1719820922984,3.15858567,63349.0,63348.0,0.40781811]
[1719820923213,3.23228567,63349.0,63348.0,0.40781811]
[1719820923419,2.99141702,63349.0,63348.0,0.40781811]
[1719820923570,3.18633437,63349.0,63348.0,0.40781811]
[1719820923775,3.23323863,63349.0,63348.0,0.40781811]
[1719820926596,2.61653863,63349.0,63348.0,0.40781811]
[1719820926811,2.61653863,63349.0,63348.0,0.48871811]
[1719820926812,2.59564524,63349.0,63348.0,0.48871811]
[1719820927603,3.13644524,63349.0,63348.0,0.40781811]
[1719820927801,2.93644524,63349.0,63348.0,0.40781811]
[1719820928168,3.09580716,63349.0,63348.0,0.40781811]
[1719820928392,2.93644524,63349.0,63348.0,0.40781811]
[1719820928781,3.29580539,63349.0,63348.0,0.40781811]
[1719820928981,3.13644524,63349.0,63348.0,0.40781811]
[1719820929823,3.0933778,63349.0,63348.0,0.40781811]
[1719820930030,3.14208511,63349.0,63348.0,0.40781811]
[1719820933070,3.1413295,63349.0,63348.0,0.40781811]
[1719820933529,3.0458822,63349.0,63348.0,0.40781811]
[1719820933710,3.14132756,63349.0,63348.0,0.40781811]
[1719820934680,2.89427702,63349.0,63348.0,0.40781811]
[1719820934882,3.14050736,63349.0,63348.0,0.40781811]
[1719820936148,3.14064664,63349.0,63348.0,0.40781811]
[1719820936349,3.14064684,63349.0,63348.0,0.40781811]
[1719820936973,3.23558684,63349.0,63348.0,0.40781811]
[1719820939008,3.16188684,63349.0,63348.0,0.40781811]
[1719820939210,3.23558684,63349.0,63348.0,0.40781811]
[1719820939415,2.98921702,63349.0,63348.0,0.40781811]
[1719820939619,3.23515372,63349.0,63348.0,0.40781811]
[1719820940175,2.55641372,63349.0,63348.0,0.40781811]
[1719820940385,1.85129172,63349.0,63348.0,0.55431811]
[1719820940595,1.76014645,63349.0,63348.0,0.55431811]
[1719820941038,1.85534685,63349.0,63348.0,0.55431811]
[1719820941445,1.91067904,63349.0,63348.0,0.55431811]
[1719820942581,1.83538143,63349.0,63348.0,0.55431811]
[1719820942821,1.78889231,63349.0,63348.0,0.55431811]
[1719820943059,1.78889231,63349.0,63348.0,0.55425366]
[1719820943769,1.78889231,63349.0,63348.0,0.40775366]
[1719820943996,1.87999499,63349.0,63348.0,0.40775366]
[1719820945848,1.88042566,63349.0,63348.0,0.40775366]
[1719820946541,1.86042566,63349.0,63348.0,0.40775366]
[1719820946997,1.88042566,63349.0,63348.0,0.40775366]
[1719820947216,1.78919718,63349.0,63348.0,0.40775366]
[1719820948700,1.63415942,63349.0,63348.0,0.40775366]
[1719820948927,1.76940727,63349.0,63348.0,0.40775366]
[1719820949143,1.63415942,63349.0,63348.0,0.40775366]
[1719820949370,1.78949109,63349.0,63348.0,0.40775366]
[1719820951296,2.10520209,63349.0,63348.0,0.40775366]
[1719820951521,2.21952581,63349.0,63348.0,0.40775366]
[1719820952082,2.2194575,63349.0,63348.0,0.40775366]
[1719820952483,2.2931575,63349.0,63348.0,0.40775366]
[1719820954631,2.4399575,63349.0,63348.0,0.40775366]
[1719820955274,2.19337042,63349.0,63348.0,0.40775366]
[1719820955468,2.4429276,63349.0,63348.0,0.40775366]
[1719820958370,2.34714306,63349.0,63348.0,0.40775366]
[1719820958572,2.442795,63349.0,63348.0,0.40775366]
[1719820959734,3.00217329,63349.0,63348.0,0.40775366]
[1719820960182,2.842795,63349.0,63348.0,0.40775366]
[1719820960991,2.642795,63349.0,63348.0,0.40775366]
[1719820961184,2.80219891,63349.0,63348.0,0.40775366]
[1719820961598,2.70654697,63349.0,63348.0,0.40775366]
[1719820961713,2.80222039,63349.0,63348.0,0.40775366]
[1719820962531,3.00222039,63349.0,63348.0,0.40775366]
[1719820963532,2.80222039,63349.0,63348.0,0.40775366]
[1719820964901,2.80213296,63349.0,63348.0,0.40775366]
[1719820968023,2.80144586,63349.0,63348.0,0.40775366]
[1719820968840,2.64204354,63349.0,63348.0,0.40775366]
[1719820970682,2.80121512,63349.0,63348.0,0.40775366]
[1719820971042,2.6418128,63349.0,63348.0,0.40775366]
[1719820971244,1.63692868,63349.0,63348.0,0.40775366]
[1719820971443,1.9588677,63349.0,63348.0,0.40775366]
[1719820971664,1.9358677,63349.0,63348.0,0.40775366]
[1719820971867,2.07758246,63349.0,63348.0,0.40775366]
[1719820972040,2.07728442,63349.0,63348.0,0.40775366]
[1719820972323,1.93556966,63349.0,63348.0,0.40775366]
[1719820972552,2.07728442,63349.0,63348.0,0.40775366]
[1719820972786,1.98550048,63349.0,63348.0,0.40775366]
[1719820973023,2.00850048,63349.0,63348.0,0.40775366]
[1719820974393,1.71033064,63349.0,63348.0,0.40775366]
[1719820974595,1.93373082,63349.0,63348.0,0.40775366]
[1719820974834,1.9120515,63349.0,63348.0,0.48455366]
[1719820975043,1.46701267,63349.0,63348.0,0.54605366]
[1719820975250,1.4533009,63349.0,63348.0,0.54605366]
[1719820975880,1.51658418,63349.0,63348.0,0.54605366]
[1719820976382,1.19158495,63349.0,63348.0,0.54605366]
[1719820976626,1.07349826,63349.0,63348.0,0.54605366]
[1719820977523,0.904117,63349.0,63348.0,0.54605366]
[1719820977799,0.99337939,63349.0,63348.0,0.54605366]
[1719820978024,1.00737939,63349.0,63348.0,0.54605366]
[1719820978524,0.99337939,63349.0,63348.0,0.54605366]
[1719820979047,1.00737939,63349.0,63348.0,0.54605366]
[1719820979539,0.99337939,63349.0,63348.0,0.54605366]
[1719820979961,1.00737939,63349.0,63348.0,0.54605366]
[1719820980224,0.99337939,63349.0,63348.0,0.54605366]
[1719820980466,0.21810239,63349.0,63348.0,0.55676543]
[1719820980709,0.12884,63349.0,63348.0,0.55676543]
[1719820980942,0.08374865,63349.0,63348.0,0.55676543]
[1719820981193,0.18374865,63349.0,63348.0,0.55676543]
[1719820981382,0.08374865,63349.0,63348.0,0.71462343]
[1719820981660,0.05276475,63349.0,63348.0,0.71462343]
[1719820982812,0.05276475,63349.0,63348.0,1.34605543]
[1719820983041,0.04165243,63349.0,63348.0,1.34605543]
[1719820983272,0.05264108,63349.0,63348.0,1.34605543]
[1719820983752,0.05264108,63349.0,63348.0,1.73547143]
[1719820984021,0.04165243,63349.0,63348.0,1.73547143]
[1719820984711,0.02765243,63349.0,63348.0,1.73547143]
[1719820984930,0.01365243,63349.0,63348.0,1.73547143]
[1719820985189,0.02565243,63349.0,63348.0,1.73547143]
[1719820985405,0.01284,63349.0,63348.0,1.93547143]
[1719820985833,0.00084,63355.0,63354.0,0.79992677]
[1719820986045,0.00084,63355.0,63354.0,0.82122677]
[1719820986250,0.01361562,63355.0,63354.0,0.82122677]
[1719820986459,0.01361562,63355.0,63354.0,1.36149677]
[1719820986460,0.01360362,63355.0,63354.0,1.36149677]
[1719820987552,0.02360362,63355.0,63354.0,1.56149677]
[1719820987764,0.30884,63355.0,63354.0,2.27718277]
[1719820987977,0.30884,63355.0,63354.0,2.59286877]
[1719820987978,0.15044,63355.0,63354.0,2.59286877]
[1719820988181,0.15844,63355.0,63354.0,2.59286877]
[1719820989485,0.16544,63355.0,63354.0,2.59286877]
[1719820993841,0.16544,63355.0,63354.0,2.27718277]
[1719820994725,0.16544,63355.0,63354.0,2.35088277]
[1719820997300,0.16544,63355.0,63354.0,1.63519677]
[1719821000126,0.16544,63355.0,63354.0,2.03519677]
[1719821000590,0.16544,63355.0,63354.0,1.63519677]
[1719821000813,0.16544,63355.0,63354.0,0.77228177]
[1719821001034,0.16544,63355.0,63354.0,0.84598177]
[1719821001484,0.16544,63355.0,63354.0,0.77228177]
[1719821001704,0.16544,63355.0,63354.0,0.84598177]
[1719821002377,0.32328,63355.0,63354.0,0.84598177]
[1719821002600,0.638961,63355.0,63354.0,0.84598177]
[1719821002820,0.954642,63355.0,63354.0,0.84598177]
[1719821003773,1.270323,63355.0,63354.0,0.54027]
[1719821004002,1.28301224,63355.0,63354.0,0.55098177]
[1719821005156,1.270323,63355.0,63354.0,0.55098177]
[1719821005371,1.28307365,63355.0,63354.0,0.55098177]
[1719821008228,1.28307365,63355.0,63354.0,0.54027]
[1719821008507,1.29349144,63355.0,63354.0,0.54027]
[1719821008743,1.270323,63355.0,63354.0,0.54027]
[1719821008975,1.2934503,63355.0,63354.0,0.54027]
[1719821010497,1.2934503,63355.0,63354.0,0.55098177]
[1719821011432,1.270323,63355.0,63354.0,0.55098177]
[1719821011638,1.29341126,63355.0,63354.0,0.55098177]
[1719821011834,1.28301892,63355.0,63354.0,0.55098177]
[1719821012088,0.17813592,63355.0,63354.0,0.70882477]
[1719821012258,0.17813592,63355.0,63354.0,0.55098177]
[1719821012951,0.17813592,63355.0,63354.0,0.70882477]
[1719821013602,0.17813592,63355.0,63354.0,1.42451077]
[1719821013815,0.17813592,63355.0,63354.0,1.74019677]
[1719821014019,0.17813592,63355.0,63354.0,1.94019677]
[1719821014392,0.17813592,63355.0,63354.0,1.42451077]
[1719821014650,0.17802805,63355.0,63354.0,1.42451077]
[1719821015343,0.17802805,63355.0,63354.0,0.75098177]
[1719821018614,0.96723005,63355.0,63354.0,0.75098177]
[1719821018816,0.97718854,63355.0,63354.0,0.75098177]
[1719821020915,1.05898854,63355.0,63354.0,0.75098177]
[1719821021120,1.04911068,63355.0,63354.0,0.75098177]
[1719821021321,1.05916343,63355.0,63354.0,0.75098177]
[1719821023157,1.05916343,63355.0,63354.0,0.55098177]
[1719821023566,1.37484443,63355.0,63354.0,0.54027]
[1719821023744,1.40566368,63355.0,63354.0,0.54027]
[1719821024408,1.40598081,63355.0,63354.0,0.54027]
[1719821024750,1.39332974,63355.0,63354.0,0.54027]
[1719821024949,1.40604417,63355.0,63354.0,0.54027]
[1719821025786,1.40688417,63355.0,63354.0,0.54027]
[1719821027393,1.40688061,63355.0,63354.0,0.54027]
[1719821030492,1.36556727,63355.0,63354.0,0.54027]
[1719821030807,1.40612912,63355.0,63354.0,0.54027]
[1719821031576,1.32432912,63355.0,63354.0,0.55098177]
[1719821031779,1.32433356,63355.0,63354.0,0.55098177]
[1719821033776,1.31456057,63355.0,63354.0,0.55098177]
[1719821033937,1.32437579,63355.0,63354.0,0.55098177]
[1719821034116,1.00869479,63355.0,63354.0,0.55098177]
[1719821035509,0.66224495,63355.0,63354.0,0.62468177]
[1719821035715,0.34656395,63355.0,63354.0,0.62468177]
[1719821036960,0.33674873,63355.0,63354.0,0.62468177]
[1719821037169,0.34656476,63355.0,63354.0,0.62468177]
[1719821037801,0.66224576,63355.0,63354.0,0.55098177]
[1719821039320,0.66224576,63355.0,63354.0,0.54027]
[1719821039762,0.97792676,63355.0,63354.0,0.54027]
[1719821040073,0.955482,63355.0,63354.0,0.54027]
[1719821040277,0.97791766,63355.0,63354.0,0.54027]
[1719821040484,0.955482,63355.0,63354.0,0.54027]
[1719821040726,1.29359991,63355.0,63354.0,0.54027]
[1719821042336,1.43199991,63355.0,63354.0,0.54027]
[1719821042554,1.43200372,63355.0,63354.0,0.54027]
[1719821043031,1.44129195,63355.0,63354.0,0.54027]
[1719821043240,1.44124459,63355.0,63354.0,0.54027]
[1719821044383,1.43195636,63355.0,63354.0,0.54027]
[1719821045530,1.409563,63355.0,63354.0,0.54027]
[1719821045726,1.43195077,63355.0,63354.0,0.54027]
[1719821046716,1.441239,63355.0,63354.0,0.54027]
[1719821047116,2.29186759,63355.0,63354.0,0.54027]
[1719821047323,2.41001194,63355.0,63354.0,0.54027]
[1719821047522,2.29186759,63355.0,63354.0,0.54027]
[1719821047723,2.40999286,63355.0,63354.0,0.54027]
[1719821047954,2.42999286,63355.0,63354.0,0.54027]
[1719821048310,2.30486759,63355.0,63354.0,0.54027]
[1719821048607,2.31086759,63355.0,63354.0,0.54127]
[1719821048818,2.26944323,63355.0,63354.0,0.54227]
[1719821049035,2.32476017,63355.0,63354.0,0.54227]
[1719821051070,2.34776017,63355.0,63354.0,0.54227]
[1719821051273,2.71099087,63355.0,63354.0,0.39237]
[1719821051908,2.65567393,63355.0,63354.0,0.39237]
[1719821052116,2.71064674,63355.0,63354.0,0.39237]
[1719821052322,3.05224833,63355.0,63354.0,0.39237]
[1719821052525,3.14112536,63355.0,63354.0,0.39237]
[1719821052932,3.34112536,63355.0,63354.0,0.39237]
[1719821053489,3.68584646,63355.0,63354.0,0.116194]
[1719821053720,3.59068388,63355.0,63354.0,0.084625]
[1719821053923,3.57668388,63355.0,63354.0,0.083625]
[1719821054177,3.57668388,63355.0,63354.0,0.082625]
[1719821054178,3.56268388,63355.0,63354.0,0.082625]
[1719821054321,0.01,63349.0,63348.0,0.000924]
[1719821054512,2.07420104,63349.0,63348.0,0.000924]
[1719821054708,2.37420104,63349.0,63348.0,0.000924]
[1719821055067,2.36443537,63349.0,63348.0,0.000924]
[1719821055275,2.53474698,63349.0,63348.0,0.000924]
[1719821055475,2.4669506,63349.0,63348.0,0.000924]
[1719821055686,2.53474508,63349.0,63348.0,0.000924]
[1719821055835,2.54874508,63349.0,63348.0,0.000924]
[1719821056039,2.56274508,63349.0,63348.0,0.000924]
[1719821057546,2.68047396,63349.0,63348.0,0.000924]
[1719821057925,2.6805231,63349.0,63348.0,0.000924]
[1719821058155,2.5075072,63349.0,63348.0,0.000924]
[1719821058359,2.68048804,63349.0,63348.0,0.000924]
[1719821058564,2.56276203,63349.0,63348.0,0.000924]
[1719821058780,2.36276203,63349.0,63348.0,0.000924]
[1719821059369,2.56276203,63349.0,63348.0,0.000924]
[1719821061438,2.562629,63349.0,63348.0,0.000924]
[1719821064258,2.625878,63349.0,63348.0,0.000924]
[1719821064688,2.62600663,63349.0,63348.0,0.000924]
[1719821065619,2.42600663,63349.0,63348.0,0.000924]
[1719821067510,2.62600663,63349.0,63348.0,0.000924]
[1719821067931,2.62660463,63349.0,63348.0,0.000924]
[1719821068419,2.62644407,63349.0,63348.0,0.000924]
[1719821070717,2.61383322,63349.0,63348.0,0.000924]
[1719821070924,2.62537284,63349.0,63348.0,0.000924]
[1719821071123,2.65890184,63349.0,63348.0,0.000924]
[1719821072658,2.61556031,63349.0,63348.0,0.000924]
[1719821073246,2.93127131,63349.0,63348.0,0.000924]
[1719821073451,2.97521423,63349.0,63348.0,0.000924]
[1719821074232,2.90804115,63349.0,63348.0,0.000924]
[1719821074430,2.97528954,63349.0,63348.0,0.000924]
[1719821075606,2.36470723,63346.0,63345.0,0.068427]
[1719821075900,2.49405562,63346.0,63345.0,0.005281]
[1719821076311,2.64449562,63346.0,63345.0,0.005281]
[1719821076660,2.6886344,63346.0,63345.0,0.005281]
[1719821077020,2.7026344,63346.0,63345.0,0.005281]
[1719821077213,2.7997691,63346.0,63345.0,0.005281]
[1719821077427,2.63538601,63346.0,63345.0,0.005281]
[1719821077646,2.81853283,63346.0,63345.0,0.005281]
[1719821077854,2.83253283,63346.0,63345.0,0.005281]
[1719821080730,2.83255662,63346.0,63345.0,0.005281]
[1719821083094,2.68395662,63346.0,63345.0,0.005281]
[1719821084014,2.68334073,63346.0,63345.0,0.005281]
[1719821084449,1.99634856,63346.0,63345.0,0.005281]
[1719821084621,2.02885435,63346.0,63345.0,0.005281]
[1719821086866,2.02864972,63346.0,63345.0,0.005281]
[1719821087055,1.91921259,63346.0,63345.0,0.005281]
[1719821087259,2.02865762,63346.0,63345.0,0.005281]
[1719821088796,2.0475733,63346.0,63345.0,0.005281]
[1719821089622,2.16539978,63346.0,63345.0,0.005281]
[1719821090437,2.047925,63346.0,63345.0,0.005281]
[1719821092641,2.363651,63346.0,63345.0,0.005281]
[1719821092859,2.386651,63346.0,63345.0,0.005281]
[1719821093439,2.20397569,63346.0,63345.0,0.005281]
[1719821093767,2.514445,63346.0,63345.0,0.005281]
[1719821093913,2.364005,63346.0,63345.0,0.005281]
[1719821094112,2.378005,63346.0,63345.0,0.005281]
[1719821094517,2.22225808,63346.0,63345.0,0.005281]
[1719821095352,2.36235808,63346.0,63345.0,0.005281]
[1719821095991,2.37635808,63346.0,63345.0,0.005281]
[1719821096756,2.37623558,63346.0,63345.0,0.005281]
[1719821099983,2.37636472,63346.0,63345.0,0.005281]
[1719821102447,2.37635766,63346.0,63345.0,0.005281]
[1719821102871,2.36379199,63346.0,63345.0,0.005281]
[1719821103053,2.37630046,63346.0,63345.0,0.005281]
[1719821105404,2.30303064,63346.0,63345.0,0.005281]
[1719821105603,2.14293065,63346.0,63345.0,0.005281]
[1719821105814,2.23663065,63346.0,63345.0,0.005281]
[1719821107194,1.92090465,63346.0,63345.0,0.005281]
[1719821108006,2.23663065,63346.0,63345.0,0.005281]
[1719821108646,2.05353569,63346.0,63345.0,0.005281]
[1719821108847,1.92295604,63346.0,63345.0,0.005281]
[1719821109889,1.87995604,63346.0,63345.0,0.144781]
[1719821110825,1.87995604,63346.0,63345.0,0.081681]
[1719821110826,1.89995604,63346.0,63345.0,0.081681]
[1719821111026,1.87995604,63346.0,63345.0,0.081681]
[1719821111226,1.89995604,63346.0,63345.0,0.081681]
[1719821111879,1.8880577,63346.0,63345.0,0.081681]
[1719821112031,1.90069661,63346.0,63345.0,0.081681]
[1719821112391,1.90069661,63346.0,63345.0,0.005281]
[1719821114952,1.90007304,63346.0,63345.0,0.005281]
[1719821115578,1.90007075,63346.0,63345.0,0.005281]
[1719821115992,1.88747176,63346.0,63345.0,0.005281]
[1719821116361,1.90007099,63346.0,63345.0,0.005281]
[1719821116578,1.72740892,63346.0,63345.0,0.005281]
[1719821116784,1.89990661,63346.0,63345.0,0.005281]
[1719821118388,1.82620661,63346.0,63345.0,0.005281]
[1719821118597,1.89990661,63346.0,63345.0,0.005281]
[1719821118997,1.89799479,63346.0,63345.0,0.005281]
[1719821119382,1.72730035,63346.0,63345.0,0.005281]
[1719821119583,1.89721996,63346.0,63345.0,0.005281]
[1719821121047,1.80034052,63346.0,63345.0,0.005281]
[1719821121353,1.8973666,63346.0,63345.0,0.006205]
[1719821121557,1.8982066,63346.0,63345.0,0.006205]
[1719821122130,1.89820642,63346.0,63345.0,0.006205]
[1719821125064,1.98380642,63346.0,63345.0,0.006205]
[1719821125287,1.87407106,63346.0,63345.0,0.006205]
[1719821125627,1.98348227,63346.0,63345.0,0.006205]
[1719821126457,2.29920827,63346.0,63345.0,0.006205]
[1719821128574,2.29920266,63346.0,63345.0,0.006205]
[1719821131771,2.22434726,63346.0,63345.0,0.006205]
[1719821131921,2.23683557,63346.0,63345.0,0.006205]
[1719821133295,2.38193557,63346.0,63345.0,0.006205]
[1719821134844,2.19947569,63346.0,63345.0,0.006205]
[1719821135043,2.38179604,63346.0,63345.0,0.006205]
[1719821135486,2.38181867,63346.0,63345.0,0.006205]
[1719821135861,2.36781867,63346.0,63345.0,0.006205]
[1719821136272,2.38181867,63346.0,63345.0,0.006205]
[1719821136474,2.52746899,63346.0,63345.0,0.006205]
[1719821136667,2.51346899,63346.0,63345.0,0.006205]
[1719821136954,2.53925411,63346.0,63345.0,0.006205]
[1719821137152,2.37960379,63346.0,63345.0,0.006205]
[1719821137984,2.20974979,63346.0,63345.0,0.006205]
[1719821138210,2.3797955,63346.0,63345.0,0.006205]
[1719821141220,2.38018742,63346.0,63345.0,0.006205]
[1719821144506,2.19726081,63346.0,63345.0,0.006205]
[1719821144712,2.38016626,63346.0,63345.0,0.006205]
[1719821146770,1.79300023,63344.0,63343.0,6e-07]
[1719821146997,1.6589021,63344.0,63343.0,6e-07]
[1719821147216,1.82970568,63344.0,63343.0,6e-07]
[1719821147432,2.14544168,63344.0,63343.0,6e-07]
[1719821147644,2.13057225,63344.0,63343.0,6e-07]
[1719821147847,2.14307813,63344.0,63343.0,6e-07]
[1719821148055,2.15707813,63344.0,63343.0,6e-07]
[1719821148477,2.10530203,63344.0,63343.0,6e-07]
[1719821148682,2.19900203,63344.0,63343.0,6e-07]
[1719821148927,1.78956603,63344.0,63343.0,6e-07]
[1719821149127,1.87726603,63344.0,63343.0,0.1430006]
[1719821150854,1.86725114,63344.0,63343.0,0.1430006]
[1719821151014,1.8060013,63344.0,63343.0,0.1430006]
[1719821151212,1.70917429,63344.0,63343.0,0.1430006]
[1719821151411,1.87968664,63344.0,63343.0,0.1430006]
[1719821153494,1.59981402,63344.0,63343.0,0.1433006]
[1719821153752,0.90317403,63344.0,63343.0,0.1433006]
[1719821153998,0.10106201,63344.0,63343.0,0.15401237]
[1719821154253,0.05870216,63344.0,63343.0,0.22771237]
[1719821154531,0.05870216,63344.0,63343.0,0.15401237]
[1719821154532,0.03080953,63344.0,63343.0,0.15401237]
[1719821154772,0.05880953,63344.0,63343.0,0.15401237]
[1719821154986,0.04480953,63344.0,63343.0,0.15401237]
[1719821155468,0.04480953,63344.0,63343.0,0.62854637]
[1719821155679,0.20051753,63344.0,63343.0,0.62854637]
[1719821155903,0.20251753,63344.0,63343.0,0.62854637]
[1719821156993,0.16081537,63344.0,63343.0,0.62854637]
[1719821157210,0.18932064,63344.0,63343.0,0.62854637]
[1719821157433,0.19032064,63344.0,63343.0,0.62854637]
[1719821160315,0.19035363,63344.0,63343.0,0.62854637]
[1719821162509,0.48994098,63344.0,63343.0,0.62854637]
[1719821162711,0.50612374,63344.0,63343.0,0.62854637]
[1719821165979,0.50629914,63344.0,63343.0,0.62854637]
[1719821166301,0.50630939,63344.0,63343.0,0.62854637]
[1719821167135,0.19057339,63344.0,63343.0,0.62854637]
[1719821167801,0.17816274,63344.0,63343.0,0.62854637]
[1719821168003,0.1906208,63344.0,63343.0,0.62854637]
[1719821168653,0.17427343,63344.0,63343.0,0.62854637]
[1719821168867,0.19132587,63344.0,63343.0,0.62854637]
[1719821171211,0.82279787,63344.0,63343.0,0.6178346]
[1719821171627,0.82279787,63344.0,63343.0,0.62854637]
[1719821171826,0.82279787,63344.0,63343.0,0.6178346]
[1719821172037,0.82279787,63344.0,63343.0,0.62854637]
[1719821172264,0.82267506,63344.0,63343.0,0.62854637]
[1719821172478,0.80576446,63344.0,63343.0,0.62854637]
[1719821172687,0.01642446,63344.0,63343.0,0.62854637]
[1719821173175,0.01542446,63344.0,63343.0,0.62854637]
[1719821173401,0.18129246,63344.0,63343.0,0.62854637]
[1719821173630,0.17929246,63344.0,63343.0,0.62854637]
[1719821173870,0.02242446,63344.0,63343.0,0.62854637]
[1719821174109,0.01342446,63344.0,63343.0,0.62854637]
[1719821174339,0.02142446,63344.0,63343.0,0.62854637]
[1719821174565,0.03042446,63344.0,63343.0,0.62854637]
[1719821174786,0.01342446,63344.0,63343.0,0.62854637]
[1719821175002,0.01742446,63344.0,63343.0,0.62854637]
[1719821175299,0.00994737,63344.0,63343.0,0.62854637]
[1719821175530,0.02240973,63344.0,63343.0,0.62854637]
[1719821176731,0.00994737,63344.0,63343.0,0.62854637]
[1719821176952,0.02241138,63344.0,63343.0,0.62854637]
[1719821177339,0.02241138,63344.0,63343.0,2.00733937]
[1719821177560,0.00994737,63344.0,63343.0,2.00733937]
[1719821178344,0.00494737,63344.0,63343.0,2.00733937]
[1719821178759,0.00994737,63344.0,63343.0,2.00733937]
[1719821178943,0.00494737,63344.0,63343.0,2.00733937]
[1719821179368,0.00594737,63344.0,63343.0,2.00733937]
[1719821179679,0.00194737,63344.0,63343.0,2.00733937]
[1719821179899,0.00594737,63344.0,63343.0,2.00733937]
[1719821180528,0.00194737,63344.0,63343.0,2.20733937]
[1719821180705,0.00194737,63344.0,63343.0,2.40733937]
[1719821180934,0.00194737,63344.0,63343.0,2.33363937]
[1719821181265,0.00294737,63344.0,63343.0,2.40733937]
[1719821183458,0.00294737,63344.0,63343.0,2.20733937]
[1719821183660,0.00294737,63344.0,63343.0,2.40733937]
[1719821185200,0.00294737,63344.0,63343.0,2.33363937]
[1719821185421,0.00294737,63344.0,63343.0,2.40733937]
[1719821192362,0.00294737,63344.0,63343.0,2.72308037]
[1719821198305,0.00294737,63344.0,63343.0,2.77031835]
[1719821199335,0.00294737,63344.0,63343.0,2.72308037]
[1719821200339,0.00294737,63344.0,63343.0,2.77034313]
[1719821201022,0.00294737,63344.0,63343.0,2.77034328]
[1719821203589,0.00294737,63344.0,63343.0,3.20449578]
[1719821203799,0.00294737,63344.0,63343.0,3.20449689]
[1719821204011,0.00294737,63344.0,63343.0,2.72308037]
[1719821204222,0.00194737,63344.0,63343.0,3.29899984]
[1719821204428,0.00194737,63344.0,63343.0,3.20448866]
[1719821205293,0.00094737,63344.0,63343.0,3.20448866]
[1719821205536,0.00194737,63344.0,63343.0,3.21048866]
[1719821206215,0.00294737,63344.0,63343.0,3.21648866]
[1719821206434,0.00294737,63344.0,63343.0,3.28736082]
[1719821207319,0.00193396,63344.0,63343.0,2.93711645]
[1719821207792,0.00193396,63344.0,63343.0,3.28736146]
[1719821208213,0.00084,63355.0,63354.0,1.85461277]
[1719821208451,0.00084,63355.0,63354.0,2.40184277]
[1719821208690,0.00084,63355.0,63354.0,2.71752877]
[1719821208923,0.00084,63355.0,63354.0,2.91752877]
[1719821209173,0.00084,63363.0,63362.0,1.85447277]
[1719821209392,0.00084,63363.0,63362.0,1.92817277]
[1719821209599,0.00084,63363.0,63362.0,2.60164277]
[1719821210854,0.00084,63363.0,63362.0,2.6075376]
[1719821210855,0.00184,63363.0,63362.0,2.6075376]
[1719821211071,0.00184,63363.0,63362.0,2.5338376]
[1719821211247,0.00184,63363.0,63362.0,2.6075376]
[1719821212154,0.00084,63363.0,63362.0,2.52773056]
[1719821212355,0.00084,63363.0,63362.0,2.61343056]
[1719821212558,0.00184,63363.0,63362.0,2.61343056]
[1719821212763,0.00284,63363.0,63362.0,2.62543056]
[1719821213016,0.00184,63363.0,63362.0,2.61343056]
[1719821213223,0.00284,63363.0,63362.0,2.62732342]
[1719821213424,0.00184,63363.0,63362.0,2.61532342]
[1719821213576,0.00184,63363.0,63362.0,2.62332342]
[1719821213577,0.00284,63363.0,63362.0,2.62332342]
[1719821213970,0.00284,63363.0,63362.0,2.61532342]
[1719821215535,0.00294952,63363.0,63362.0,2.93096942]
[1719821216435,0.0629,63376.0,63364.0,1.85481842]
[1719821216655,0.0629,63376.0,63364.0,2.32826842]
[1719821217272,0.0629,63376.0,63375.0,1.19934442]
[1719821217403,0.0629,63376.0,63375.0,1.27304442]
[1719821217743,0.0629,63376.0,63375.0,1.74641442]
[1719821219276,0.0808,63377.0,63376.0,0.99933242]
[1719821219677,0.0808,63377.0,63376.0,1.47270242]
[1719821220664,0.0848,63377.0,63376.0,1.27291775]
[1719821220871,0.0898,63377.0,63376.0,1.27291775]
[1719821224915,0.0898,63377.0,63376.0,1.27281647]
[1719821226224,0.0898,63377.0,63376.0,1.27270789]
[1719821226519,0.0898,63377.0,63376.0,1.27260136]
[1719821228625,0.0898,63377.0,63376.0,1.27249854]
[1719821228825,0.0898,63377.0,63376.0,1.27239499]
[1719821232124,0.15590748,63377.0,63376.0,1.27239499]
[1719821232316,0.15590748,63377.0,63376.0,0.48345499]
[1719821233314,0.17392724,63377.0,63376.0,0.48345499]
[1719821235140,0.17396512,63377.0,63376.0,0.48345499]
[1719821237071,0.17396919,63377.0,63376.0,0.48345499]
[1719821238498,0.15590748,63377.0,63376.0,0.48345499]
[1719821238720,0.17411954,63377.0,63376.0,0.48345499]
[1719821239065,0.17411954,63377.0,63376.0,0.64124299]
[1719821239750,0.17411954,63377.0,63376.0,0.48345499]
[1719821241286,0.17411954,63377.0,63376.0,0.64124299]
[1719821241732,0.15590748,63377.0,63376.0,0.64124299]
[1719821241904,0.17411523,63377.0,63376.0,0.64124299]
[1719821242109,0.15590748,63377.0,63376.0,0.48345499]
[1719821242313,0.17408598,63377.0,63376.0,0.48345499]
[1719821244746,0.15590748,63377.0,63376.0,0.48345499]
[1719821244953,0.17408516,63377.0,63376.0,0.48345499]
[1719821247197,0.36259999,63377.0,63376.0,0.47337]
[1719821248066,0.34439632,63377.0,63376.0,0.47337]
[1719821248244,0.36264812,63377.0,63376.0,0.47337]
[1719821248448,0.67821912,63377.0,63376.0,0.47337]
[1719821250363,0.99410947,63377.0,63376.0,0.47337]
[1719821250624,1.31959548,63377.0,63376.0,0.47337]
[1719821250876,1.30968047,63377.0,63376.0,0.47337]
[1719821251087,1.36424364,63377.0,63376.0,0.47337]
[1719821251289,1.26072483,63377.0,63376.0,0.47337]
[1719821251420,1.36487362,63377.0,63376.0,0.47337]
[1719821253104,1.30989948,63377.0,63376.0,0.47337]
[1719821253311,1.30958013,63377.0,63376.0,0.474294]
[1719821253726,1.31042013,63377.0,63376.0,0.474294]
[1719821254409,1.26156483,63377.0,63376.0,0.474294]
[1719821254636,1.31038258,63377.0,63376.0,0.474294]
[1719821254949,1.31070193,63377.0,63376.0,0.474294]
[1719821257761,1.29232638,63377.0,63376.0,0.474294]
[1719821257930,1.31067559,63377.0,63376.0,0.474294]
[1719821258170,1.27991404,63377.0,63376.0,0.474294]
[1719821258365,1.31067271,63377.0,63376.0,0.474294]
[1719821260808,1.26156483,63377.0,63376.0,0.474294]
[1719821261030,1.31075021,63377.0,63376.0,0.474294]
[1719821262437,1.69117439,63377.0,63376.0,0.474294]
[1719821263514,1.68617439,63377.0,63376.0,0.474294]
[1719821263976,1.59305084,63377.0,63376.0,0.475294]
[1719821264189,1.69344922,63377.0,63376.0,0.475294]
[1719821264609,1.70344922,63377.0,63376.0,0.476294]
[1719821267169,1.67266794,63377.0,63376.0,0.476294]